lending/lending_fUSD_20251218
["ID","MTS","AMOUNT","RATE_DAILY","PERIOD"]
[398955158,1766019050011,-150.0,0.0004214,30]
[398955159,1766019050021,-150.0,0.00042143,30]
[398955160,1766019050030,-150.0,0.00042145,30]
[398955161,1766019050039,-150.0,0.0004216,30]
[398955162,1766019050049,-167.36306111,0.00042177,30]
[398955163,1766019050058,-500.0,0.00042191,60]
[398955164,1766019050067,-500.0,0.00042191,60]
[398955165,1766019050076,-500.0,0.00042191,60]
[398955166,1766019050085,-150.0,0.00042193,30]
[398955167,1766019050095,-150.0,0.00042193,30]
[398955168,1766019050103,-150.0,0.000422,30]
[398955169,1766019050113,-150.0,0.00042203,30]
[398955170,1766019050122,-150.0,0.00042203,30]
[398955171,1766019050131,-167.36306111,0.0004222,30]
[398955172,1766019050140,-150.0,0.00042232,30]
[398955173,1766019050149,-150.0,0.00042237,30]
[398955174,1766019050159,-150.0,0.00042237,30]
[398955175,1766019050168,-150.0,0.00042255,30]
[398955176,1766019050177,-167.36306111,0.00042263,30]
[398955177,1766019050186,-200.0,0.00042263,120]
[398955178,1766019050196,-150.0,0.00042267,30]
[398955179,1766019050205,-150.0,0.00042267,30]
[398955180,1766019050215,-150.0,0.0004227,30]
[398955181,1766019050225,-150.0,0.0004228,30]
[398955182,1766019050235,-2878.92230328,0.0004229,2]
[398955183,1766019050244,-150.0,0.00042304,30]
[398955184,1766019050253,-167.36306111,0.00042306,30]
[398955185,1766019050265,-3628.06136484,0.00042325,120]
[398955186,1766019050274,-150.0,0.0004233,30]
[398955187,1766019050283,-150.0,0.0004233,30]
[398955188,1766019050292,-150.0,0.00042332,30]
[398955189,1766019050302,-167.36306111,0.00042349,30]
[398955190,1766019050311,-150.0,0.00042357,30]
[398955191,1766019050320,-150.0,0.0004236,30]
[398955192,1766019050329,-150.0,0.00042376,30]
[398955193,1766019050338,-167.36306111,0.00042392,30]
[398955194,1766019050348,-150.0,0.00042394,30]
[398955195,1766019050357,-150.0,0.00042394,30]
[398955196,1766019050366,-150.0,0.00042395,30]
[398955197,1766019050376,-1000.0,0.00042399,14]
[398955198,1766019050385,-171.04,0.000424,14]
[398955199,1766019050394,-250.19,0.000424,14]
[398955200,1766019050403,-1000.0,0.00042425,120]
[398955201,1766019050413,-1000.0,0.00042425,120]
[398955202,1766019050422,-300.0,0.00042425,2]
[398955203,1766019050432,-300.0,0.00042425,2]
[398955204,1766019050441,-426720.26734,0.00042426,2]
[398955205,1766019050450,-5185.2036642,0.00042426,2]
[398955206,1766019050459,-5283.542307,0.00042426,2]
[398955207,1766019050469,-150.0,0.00042426,30]
[398955208,1766019050478,-167.36306111,0.00042435,30]
[398955209,1766019050487,-151.0,0.00042439,14]
[398955210,1766019050496,-150.0,0.0004244,30]
[398955211,1766019050508,-261.94942284,0.00042442,14]
[398955212,1766019050517,-234.90137071,0.00042442,120]
[398955213,1766019050527,-7315.5165995,0.00042442,15]
[398955214,1766019050536,-264.56833668,0.00042442,28]
[398955215,1766019050544,-49319.80804506,0.00042442,2]
[398955216,1766019050554,-572.32763985,0.00042442,2]
[398955217,1766019050568,-465.52748528,0.00042442,2]
[398955218,1766019050577,-4632.69799175,0.00042442,2]
[398955219,1766019050587,-150.0,0.00042448,30]
[398955220,1766019050597,-1000.0,0.0004245,28]
[398955221,1766019050606,-150.0,0.00042457,30]
[398955222,1766019050616,-150.0,0.00042457,30]
[398955223,1766019050625,-203.0546918,0.00042458,2]
[398955224,1766019050635,-167.36306111,0.00042478,30]
[398955225,1766019050644,-500.0,0.00042508,2]
[398955226,1766019050653,-150.0,0.00042515,60]
[398955227,1766019050663,-2198.0,0.00042521,120]
[398955228,1766019050673,-150.0,0.00042521,30]
[398955229,1766019050682,-150.0,0.00042521,30]
[398955230,1766019050692,-277.59164226,0.00042521,30]
[398955231,1766019050701,-160.8607052,0.00042521,30]
[398955232,1766019050710,-280.62987413,0.00042521,30]
[398955233,1766019050719,-167.36306111,0.00042521,30]
[398955234,1766019050729,-243.67210019,0.00042521,30]
[398955235,1766019050738,-151.17525831,0.00042521,30]
[398955236,1766019050748,-150.91550183,0.00042521,30]
[398955237,1766019050757,-150.00000001,0.00042521,30]
[398955238,1766019050767,-150.0,0.00042521,30]
[398955239,1766019050777,-150.0,0.00042521,30]
[398955240,1766019050786,-153.15599333,0.00042521,30]
[398955241,1766019050796,-150.0,0.00042521,30]
[398955242,1766019050806,-1000.0,0.00042524,3]
[398955243,1766019050815,-2000.0,0.00042525,3]
[398955244,1766019050825,-2000.0,0.00042525,3]
[398955245,1766019050835,-974.69560545,0.00042532,7]
[398955246,1766019050844,-974.69560545,0.00042532,7]
[398955247,1766019050854,-151.0,0.00042539,120]
[398955248,1766019050863,-151.0,0.00042539,120]
[398955249,1766019050872,-1000.0,0.00042541,120]
[398955250,1766019050882,-300.0,0.00042541,2]
[398955251,1766019050891,-300.0,0.00042541,30]
[398955252,1766019050901,-151.0,0.00042542,120]
[398955253,1766019050913,-151.0,0.00042542,120]
[398955254,1766019050922,-151.0,0.00042542,120]
[398955255,1766019050932,-267.476234,0.00042542,120]
[398955256,1766019050941,-197.421919,0.00042542,120]
[398955257,1766019050951,-151.0,0.00042542,30]
[398955258,1766019050960,-151.0,0.00042542,120]
[398955259,1766019050969,-155.152109,0.00042542,120]
[398955260,1766019050979,-162.831933,0.00042542,120]
[398955261,1766019050988,-151.0,0.00042542,120]
[398955262,1766019050998,-216.347018,0.00042542,120]
[398955263,1766019051007,-151.0,0.00042542,60]
[398955264,1766019051016,-151.0,0.00042542,120]
[398955265,1766019051025,-151.0,0.00042542,120]
[398955266,1766019051035,-151.0,0.00042542,120]
[398955267,1766019051044,-152.439874,0.00042542,120]
[398955268,1766019051054,-151.0,0.00042542,120]
[398955269,1766019051063,-215.178249,0.00042542,120]
[398955270,1766019051073,-233.944305,0.00042542,120]
[398955271,1766019051082,-233.944305,0.00042542,120]
[398955272,1766019051092,-233.944305,0.00042542,120]
[398955273,1766019051102,-233.944305,0.00042542,120]
[398955274,1766019051112,-233.944305,0.00042542,120]
[398955275,1766019051122,-233.944305,0.00042542,120]
[398955276,1766019051132,-233.944305,0.00042542,120]
[398955277,1766019051141,-233.944305,0.00042542,120]
[398955278,1766019051151,-233.944305,0.00042542,120]
[398955279,1766019051160,-233.944305,0.00042542,120]
[398955280,1766019051170,-233.944305,0.00042542,120]
[398955281,1766019051180,-233.944305,0.00042542,120]
[398955282,1766019051190,-233.944305,0.00042542,120]
[398955283,1766019051609,-233.944305,0.00042542,120]
[398955284,1766019051619,-233.944305,0.00042542,120]
[398955285,1766019051628,-233.944305,0.00042542,120]
[398955286,1766019051638,-233.944305,0.00042542,120]
[398955287,1766019051648,-233.944305,0.00042542,120]
[398955288,1766019051657,-233.944305,0.00042542,120]
[398955289,1766019051666,-233.944303,0.00042542,120]
[398955290,1766019051677,-151.0,0.00042542,120]
[398955291,1766019051686,-233.838299,0.00042542,120]
[398955292,1766019051696,-272.891103,0.00042542,120]
[398955293,1766019051705,-151.0,0.00042542,120]
[398955294,1766019051714,-151.0,0.00042542,120]
[398955295,1766019051723,-153.597309,0.00042542,120]
[398955296,1766019051734,-444.34565958,0.00042542,120]
[398955297,1766019051744,-151.0,0.00042542,120]
[398955298,1766019051753,-151.0,0.00042542,120]
[398955299,1766019051762,-151.0,0.00042542,120]
[398955300,1766019051771,-204.905837,0.00042542,120]
[398955301,1766019051782,-165.752495,0.00042542,120]
[398955302,1766019051792,-151.0,0.00042542,120]
[398955303,1766019051802,-151.0,0.00042542,120]
[398955304,1766019051812,-179.468924,0.00042542,120]
[398955305,1766019051822,-151.0,0.00042542,120]
[398955306,1766019051832,-151.0,0.00042542,120]
[398955307,1766019051841,-151.0,0.00042542,120]
[398955308,1766019051851,-151.0,0.00042542,120]
[398955309,1766019051862,-300.0,0.00042542,2]
[398955310,1766019051872,-300.0,0.00042542,2]
[398955311,1766019051882,-300.0,0.00042542,2]
[398955312,1766019051893,-300.0,0.00042542,2]
[398955313,1766019051903,-300.0,0.00042542,2]
[398955314,1766019051913,-300.0,0.00042542,2]
[398955315,1766019051922,-300.0,0.00042542,2]
[398955316,1766019051932,-158.194769,0.00042542,120]
[398955317,1766019051942,-300.0,0.00042542,2]
[398955318,1766019051952,-300.0,0.00042542,2]
[398955319,1766019051962,-300.0,0.00042542,2]
[398955320,1766019051972,-300.0,0.00042542,2]
[398955321,1766019051982,-300.0,0.00042542,2]
[398955322,1766019051992,-284.10900433,0.00042542,2]
[398955323,1766019052001,-151.0,0.00042542,120]
[398955324,1766019052011,-151.0,0.00042542,120]
[398955325,1766019052020,-151.0,0.00042542,120]
[398955326,1766019052030,-433.963548,0.00042542,120]
[398955327,1766019052039,-433.963548,0.00042542,120]
[398955328,1766019052049,-433.963548,0.00042542,120]
[398955329,1766019052058,-151.0,0.00042542,120]
[398955330,1766019052068,-433.963548,0.00042542,120]
[398955331,1766019052078,-151.0,0.00042542,120]
[398955332,1766019052087,-433.963548,0.00042542,120]
[398955333,1766019052097,-433.963548,0.00042542,120]
[398955334,1766019052108,-433.963548,0.00042542,120]
[398955335,1766019052118,-433.963548,0.00042542,120]
[398955336,1766019052128,-433.963548,0.00042542,120]
[398955337,1766019052138,-433.963548,0.00042542,120]
[398955338,1766019052148,-433.963548,0.00042542,120]
[398955339,1766019052158,-433.963548,0.00042542,120]
[398955340,1766019052168,-151.0,0.00042542,120]
[398955341,1766019052177,-433.963548,0.00042542,120]
[398955342,1766019052187,-151.0,0.00042542,120]
[398955343,1766019052198,-433.963548,0.00042542,120]
[398955344,1766019052208,-433.963548,0.00042542,120]
[398955345,1766019052219,-433.963548,0.00042542,120]
[398955346,1766019052229,-433.963548,0.00042542,120]
[398955347,1766019052240,-433.963548,0.00042542,120]
[398955348,1766019052249,-433.963548,0.00042542,120]
[398955349,1766019052260,-433.963554,0.00042542,120]
[398955350,1766019052270,-151.0,0.00042542,120]
[398955351,1766019052279,-151.0,0.00042542,120]
[398955352,1766019052289,-151.0,0.00042542,60]
[398955353,1766019052299,-151.0,0.00042542,60]
[398955354,1766019052310,-207.403111,0.00042542,60]
[398955355,1766019052319,-218.431993,0.00042542,120]
[398955356,1766019052329,-160.424491,0.00042542,120]
[398955357,1766019052340,-151.0,0.00042542,120]
[398955358,1766019052350,-218.745134,0.00042542,120]
[398955359,1766019052360,-151.0,0.00042542,120]
[398955360,1766019052370,-151.0,0.00042542,120]
[398955361,1766019052380,-165.041741,0.00042542,120]
[398955362,1766019052389,-2451.935647,0.00042542,120]
[398955363,1766019052399,-2451.935647,0.00042542,120]
[398955364,1766019052410,-2451.935647,0.00042542,120]
[398955365,1766019052421,-305.47717,0.00042542,120]
[398955366,1766019052432,-2451.935647,0.00042542,120]
[398955367,1766019052442,-305.47717,0.00042542,120]
[398955368,1766019052452,-2451.935647,0.00042542,120]
[398955369,1766019052462,-305.47717,0.00042542,120]
[398955370,1766019052471,-2451.935647,0.00042542,120]
[398955371,1766019052480,-305.47717,0.00042542,120]
[398955372,1766019052490,-2451.935647,0.00042542,120]
[398955373,1766019052500,-305.47717,0.00042542,120]
[398955374,1766019052513,-2451.935647,0.00042542,120]
[398955375,1766019052523,-305.47717,0.00042542,120]
[398955376,1766019052533,-2451.935647,0.00042542,120]
[398955377,1766019052543,-2451.935647,0.00042542,120]
[398955378,1766019052552,-2451.935647,0.00042542,120]
[398955379,1766019052561,-305.47717,0.00042542,120]
[398955380,1766019052571,-2451.935647,0.00042542,120]
[398955381,1766019052583,-305.47717,0.00042542,120]
[398955382,1766019052592,-2451.935647,0.00042542,120]
[398955383,1766019052601,-305.47717,0.00042542,120]
[398955384,1766019052610,-2451.935647,0.00042542,120]
[398955385,1766019052621,-305.47717,0.00042542,120]
[398955386,1766019052630,-2451.935647,0.00042542,120]
[398955387,1766019052641,-305.47717,0.00042542,120]
[398955388,1766019052651,-2451.935647,0.00042542,120]
[398955389,1766019052660,-305.47717,0.00042542,120]
[398955390,1766019052671,-2451.935647,0.00042542,120]
[398955391,1766019052680,-305.47717,0.00042542,120]
[398955392,1766019052691,-2451.935647,0.00042542,120]
[398955393,1766019052701,-305.47717,0.00042542,120]
[398955394,1766019052711,-2451.935647,0.00042542,120]
[398955395,1766019052720,-305.47717,0.00042542,120]
[398955396,1766019052730,-2451.935654,0.00042542,120]
[398955397,1766019052739,-305.47717,0.00042542,120]
[398955398,1766019052748,-305.47717,0.00042542,120]
[398955399,1766019052758,-305.47717,0.00042542,120]
[398955400,1766019052767,-305.47717,0.00042542,120]
[398955401,1766019052777,-305.477175,0.00042542,120]
[398955402,1766019052787,-162.10097,0.00042542,120]
[398955403,1766019052797,-151.0,0.00042542,120]
[398955404,1766019052807,-151.0,0.00042542,120]
[398955405,1766019052819,-151.0,0.00042542,120]
[398955406,1766019052828,-151.0,0.00042542,120]
[398955407,1766019052838,-151.0,0.00042542,120]
[398955408,1766019052847,-151.0,0.00042542,120]
[398955409,1766019052857,-151.0,0.00042542,120]
[398955410,1766019052866,-151.0,0.00042542,120]
[398955411,1766019052875,-151.0,0.00042542,120]
[398955412,1766019052885,-151.0,0.00042542,120]
[398955413,1766019052894,-151.0,0.00042542,120]
[398955414,1766019052904,-151.0,0.00042542,120]
[398955415,1766019052913,-297.559805,0.00042542,120]
[398955416,1766019052924,-151.0,0.00042542,120]
[398955417,1766019052933,-217.493099,0.00042542,120]
[398955418,1766019052943,-181.690351,0.00042542,14]
[398955419,1766019052952,-174.328063,0.00042542,120]
[398955420,1766019052961,-187.300971,0.00042542,120]
[398955421,1766019052970,-151.0,0.00042542,120]
[398955422,1766019052981,-151.0,0.00042542,120]
[398955423,1766019052990,-151.0,0.00042542,120]
[398955424,1766019053000,-151.0,0.00042542,120]
[398955425,1766019053010,-151.0,0.00042542,120]
[398955426,1766019053019,-151.0,0.00042542,120]
[398955427,1766019053028,-290.44801,0.00042542,120]
[398955428,1766019053038,-131392.93362706,0.00042542,29]
[398955429,1766019053047,-191.70906078,0.00042542,31]
[398955430,1766019053057,-669306.70938477,0.00042542,7]
[398955431,1766019054349,-1103.16022683,0.00042542,7]
[398955432,1766019054361,-3257.28895896,0.00042542,7]
[398955433,1766019054372,-2047.57159741,0.00042542,7]
[398955434,1766019054383,-281.02459137,0.00042542,7]
[398955435,1766019054394,-3225.90577544,0.00042542,7]
[398955436,1766019054406,-1253.02955847,0.00042542,7]
[398955437,1766019054418,-8756304.32436934,0.00042542,7]
[398955438,1766019054429,-1250.39518308,0.00042542,7]
[398955439,1766019054439,-467.805,0.00042542,7]
[398955440,1766019054451,-3465.30292433,0.00042542,7]
[398955441,1766019054462,-360.7136306,0.00042542,7]
[398955442,1766019054473,-994.20538998,0.00042542,7]
[398955443,1766019054770,-588.0,0.0004255,2]
[398955444,1766019054782,-953.0,0.00042542,7]
[398955445,1766019054793,-1425.78080434,0.00042542,7]
[398955446,1766019054804,-1349.55947384,0.00042542,7]
[398955447,1766019054814,-634.43867938,0.00042542,7]
[398955448,1766019054825,-3678.94705538,0.00042542,7]
[398955449,1766019054836,-1505.9945437,0.00042542,7]
[398955450,1766019054862,-1049.20648709,0.00013598,2]
[398955451,1766019054874,-500.0,0.00013598,2]
[398955452,1766019054887,-341.2771185,0.00013598,2]
[398955453,1766019055144,-598.1336958,0.00013598,2]
[398955454,1766019055156,-628.3168439,0.00013598,2]
[398955455,1766019055167,-6787.8602997,0.00013598,2]
[398955456,1766019055176,-82622.29085398,0.00042542,7]
[398955457,1766019055188,-1608.88047643,0.00042542,7]
[398955458,1766019055210,-907.34435968,0.00042542,7]
[398955459,1766019055230,-1194.489,0.00022966,2]
[398955460,1766019055247,-4070.8697318,0.00042542,7]
[398955461,1766019055259,-719.38218301,0.00042542,7]
[398955462,1766019055329,-238.05000255,0.00024839,2]
[398955463,1766019055340,-171.2102393,0.00042542,7]
[398955464,1766019055351,-2433.92932378,0.00042542,7]
[398955465,1766019055362,-3300.0,0.00042542,7]
[398955466,1766019055373,-45391.10593899,0.00042542,7]
[398955467,1766019055383,-83355.86221884,0.00042542,7]
[398955468,1766019055395,-619.09405787,0.00042542,7]
[398955469,1766019055410,-267.44,0.00042542,7]
[398955470,1766019055421,-1881.54106507,0.00042542,7]
[398955471,1766019055432,-411.31124876,0.00042542,7]
[398955472,1766019055445,-4899.52900939,0.00042542,7]
[398955473,1766019055456,-940.76339569,0.00042542,7]
[398955474,1766019055466,-329021.58654788,0.00042542,7]
[398955475,1766019055478,-723.88895006,0.00042542,7]
[398955476,1766019055489,-453.0,0.00042542,7]
[398955477,1766019055502,-11472.94810866,0.00042542,7]
[398955488,1766020231526,-187.10375317,0.00015473,2]
[398955490,1766020231535,-500.0,0.00015473,2]
[398955492,1766020231544,-94.85688937,0.0001561,2]
[398955494,1766020231556,-126.11765653,0.0001561,2]
[398955497,1766020231569,-1000.0,0.00016021,2]
[398955499,1766020231578,-340.19124767,0.00016568,2]
[398955501,1766020231590,-701.7530165,0.00016568,2]
[398955503,1766020231601,-193.87757602,0.00016568,2]
[398955504,1766020231610,-460.0705449,0.00016568,2]
[398955505,1766020231625,-45.08895464,0.00016568,2]
[398955507,1766020231635,-167.55,0.00016712,2]
[398955509,1766020231644,-528.0,0.00017017,2]
[398955511,1766020231654,-300.0,0.00017017,2]
[398955513,1766020231663,-300.0,0.00017017,2]
[398955515,1766020231673,-1200.0,0.00017017,2]
[398955517,1766020231686,-2250.30369352,0.0001702,2]
[398955518,1766020231698,-249.69630648,0.0001702,2]
[398955519,1766020231707,-54.59283883,0.0001702,2]
[398955520,1766020231718,-2445.40716117,0.0001702,2]
[398955521,1766020231727,-2500.0,0.0001702,2]
[398955522,1766020231736,-731.2642139,0.0001702,2]
[398955523,1766020231747,-1768.7357861,0.0001702,2]
[398955524,1766020231756,-2500.0,0.0001702,2]
[398955525,1766020231765,-550.0,0.0001717,2]
[398955526,1766020231775,-935.0,0.00018268,2]
[398955527,1766020231784,-300.0,0.00018586,2]
[398955528,1766020231793,-420.0,0.00018586,2]
[398955529,1766020231803,-1680.0,0.00018678,2]
[398955530,1766020231812,-6311.91,0.00019186,2]
[398955531,1766020231821,-587.0,0.000203,2]
[398955532,1766020231830,-250.0,0.00020444,2]
[398955533,1766020231839,-720.0,0.00020502,2]
[398955534,1766020231849,-166.66,0.00021197,2]
[398955535,1766020231858,-166.66,0.00021644,2]
[398955536,1766020231867,-166.66,0.0002209,30]
[398955537,1766020231876,-544.0,0.00022171,2]
[398955538,1766020231885,-57.43016192,0.00022174,2]
[398955539,1766020231897,-1016.51683808,0.00022174,2]
[398955540,1766020231906,-166.66,0.00022536,30]
[398955541,1766020231915,-32.42075579,0.00022966,2]
[398955544,1766020237665,-1574.57924421,0.00022966,2]
[398955545,1766020237675,-1324.0,0.00022966,2]
[398955546,1766020237684,-774.698,0.00022966,2]
[398955547,1766020237694,-1079.742,0.00022966,2]
[398955548,1766020237703,-728.147,0.00022966,2]
[398955549,1766020237712,-166.66,0.00022982,30]
[398955550,1766020237721,-166.66,0.00023429,30]
[398955551,1766020237730,-300.0,0.00023596,2]
[398955552,1766020237739,-563.1,0.00024658,5]
[398955553,1766020237748,-1441.95,0.00024663,2]
[398955554,1766020237758,-500.0,0.00024799,2]
[398955555,1766020237767,-500.0,0.00024799,3]
[398955556,1766020237776,-500.0,0.00024799,4]
[398955557,1766020237786,-482.05,0.00024799,5]
[398955558,1766020237795,-225.73,0.00026092,2]
[398955559,1766020237804,-500.0,0.00027397,14]
[398955560,1766020237813,-11622.99921917,0.00029413,2]
[398955561,1766020237825,-4423.85298083,0.00029413,2]
[398955562,1766020237834,-1319.87132856,0.00029503,3]
[398955563,1766020237844,-500.0,0.00029511,2]
[398955564,1766020237853,-373.48398855,0.00029511,2]
[398955565,1766020237862,-500.0,0.00029511,2]
[398955566,1766020237871,-500.0,0.00029511,2]
[398955567,1766020237880,-500.0,0.00029511,2]
[398955568,1766020237889,-500.0,0.00029511,2]
[398955569,1766020237899,-500.0,0.00029511,2]
[398955570,1766020237908,-500.0,0.00029511,2]
[398955571,1766020237917,-437.68582907,0.00029511,2]
[398955572,1766020237927,-500.0,0.00029511,2]
[398955573,1766020237936,-500.0,0.00029511,2]
[398955574,1766020237945,-500.0,0.00029511,2]
[398955575,1766020237954,-500.0,0.00029511,2]
[398955576,1766020237963,-500.0,0.00029511,2]
[398955577,1766020237974,-500.0,0.00029511,2]
[398955578,1766020237983,-500.0,0.00029511,2]
[398955579,1766020237992,-500.0,0.00029511,2]
[398955580,1766020238001,-500.0,0.00029511,2]
[398955581,1766020238011,-500.0,0.00029511,2]
[398955582,1766020238019,-500.0,0.00029511,2]
[398955583,1766020238029,-500.0,0.00029511,2]
[398955584,1766020238038,-500.0,0.00029511,2]
[398955585,1766020238048,-500.0,0.00029511,2]
[398955586,1766020238056,-500.0,0.00029511,2]
[398955587,1766020238066,-500.0,0.00029511,2]
[398955588,1766020238074,-500.0,0.00029511,2]
[398955589,1766020238084,-500.0,0.00029511,2]
[398955590,1766020238093,-500.0,0.00029511,2]
[398955591,1766020238103,-500.0,0.00029511,2]
[398955592,1766020238111,-500.0,0.00029511,2]
[398955593,1766020238121,-500.0,0.00029511,2]
[398955594,1766020238130,-500.0,0.00029511,2]
[398955595,1766020238139,-500.0,0.00029511,2]
[398955596,1766020238148,-500.0,0.00029511,2]
[398955597,1766020238157,-500.0,0.00029511,2]
[398955598,1766020238166,-500.0,0.00029511,2]
[398955599,1766020238175,-500.0,0.00029511,2]
[398955600,1766020238184,-500.0,0.00029511,2]
[398955601,1766020238193,-500.0,0.00029511,2]
[398955602,1766020238202,-500.0,0.00029511,2]
[398955603,1766020238211,-500.0,0.00029511,2]
[398955604,1766020238220,-451.99244824,0.00029511,2]
[398955605,1766020238229,-500.0,0.00029511,2]
[398955606,1766020238238,-500.0,0.00029511,2]
[398955607,1766020238247,-500.0,0.00029511,2]
[398955608,1766020238256,-500.0,0.00029511,2]
[398955609,1766020238266,-500.0,0.00029511,2]
[398955610,1766020238275,-500.0,0.00029511,2]
[398955611,1766020238285,-500.0,0.00029511,2]
[398955612,1766020238294,-500.0,0.00029511,2]
[398955613,1766020238304,-439.95710952,0.00029512,3]
[398955614,1766020238313,-3079.69976664,0.00029512,3]
[398955615,1766020238322,-72385.0616051,0.00029512,3]
[398955616,1766020238331,-544.82237645,0.00029521,2]
[398955617,1766020238340,-150.0,0.00029521,2]
[398955618,1766020238349,-8396.0,0.00029522,5]
[398955619,1766020238359,-760000.0,0.00029522,2]
[398955620,1766020238368,-2262.03317516,0.0002999,3]
[398955621,1766020238377,-3528.58960874,0.0003,2]
[398955622,1766020238387,-1000.0,0.00030135,25]
[398955623,1766020238396,-1000.0,0.00030135,27]
[398955624,1766020238405,-1000.0,0.00030135,23]
[398955625,1766020238414,-1000.0,0.00030135,16]
[398955626,1766020238423,-750.8,0.00030137,26]
[398955627,1766020238433,-307.92,0.00030409,2]
[398955628,1766020238443,-8914.31500046,0.0003086,2]
[398955629,1766020238453,-6311.91,0.00030967,2]
[398955630,1766020238463,-2262.03317516,0.00031263,3]
[398955631,1766020238472,-8914.31500046,0.00032307,2]
[398955632,1766020238481,-2262.03317516,0.00032867,3]
[398955633,1766020238491,-500.0,0.00032877,7]
[398955634,1766020238500,-500.0,0.00032877,7]
[398955635,1766020238509,-500.0,0.00032877,7]
[398955636,1766020238519,-500.0,0.00032877,7]
[398955637,1766020238528,-500.0,0.00032877,7]
[398955638,1766020238537,-150.74058699,0.00032877,7]
[398955639,1766020238547,-2000.0,0.00033418,120]
[398955640,1766020238557,-8914.31500046,0.00033754,2]
[398955641,1766020238566,-1000.0,0.00033779,21]
[398955642,1766020238576,-200.0,0.0003404,2]
[398955643,1766020238585,-178.363,0.0003488,40]
[398955644,1766020238594,-1000.0,0.00034884,30]
[398955645,1766020238604,-2262.03317516,0.00035191,3]
[398955646,1766020238614,-8914.31500046,0.00035201,2]
[398955647,1766020238623,-1000.0,0.0003528,2]
[398955648,1766020238633,-26153.18977536,0.0003528,2]
[398955654,1766020242702,-573.16702032,0.0003528,2]
[398956005,1766020247477,-723.10375317,0.0003528,2]
[398956021,1766020271244,300.0,0.0001471,120]
[398956034,1766021431933,-433.19696122,0.00013373,2]
[398956035,1766021431943,-260.0,0.00013373,2]
[398956036,1766021431952,-522.94,0.00013699,2]
[398956037,1766021431962,-500.0,0.00015473,2]
[398956038,1766021431971,-1200.0,0.00015889,2]
[398956039,1766021431980,-300.0,0.00015889,2]
[398956040,1766021431990,-721.0,0.0001589,2]
[398956041,1766021431999,-721.0,0.0001589,2]
[398956042,1766021432008,-5.47692639,0.0001589,2]
[398956043,1766021432020,-715.52307361,0.0001589,2]
[398956044,1766021432029,-283.47692639,0.00016,4]
[398956047,1766021432045,-2542.81382997,0.00016,4]
[398956049,1766021432056,-334.2368,0.00016,4]
[398956061,1766021437821,-24845.04712779,0.00016,4]
[398956062,1766021437928,-758.9550397,0.00016,4]
[398956063,1766021437940,-19007.69546576,0.00016,4]
[398956064,1766021437949,-500.0,0.00016021,2]
[398956065,1766021437959,-160.29,0.00016169,2]
[398956066,1766021437968,-5000.00284066,0.000162,5]
[398956067,1766021437977,-358.48883582,0.000166,2]
[398956068,1766021437987,-210.60365822,0.000169,2]
[398956069,1766021437996,-731.55165995,0.000169,2]
[398956070,1766021438005,-855.8333983,0.0001699,2]
[398956071,1766021438014,-477.82409505,0.00016999,2]
[398956072,1766021438023,-500.0,0.00016999,2]
[398956073,1766021438032,-500.0,0.00016999,2]
[398956074,1766021438041,-500.0,0.00016999,2]
[398956075,1766021438051,-354.64139072,0.00016999,2]
[398956076,1766021438060,-500.0,0.00016999,2]
[398956077,1766021438070,-250.0,0.00017,2]
[398956078,1766021438080,-451987.3743388,0.00017,2]
[398956269,1766021440104,-278.13863172,0.000159,2]